Cogmind - Beta 13 @@@ ROGUE MODE // 2024.05.05 @ 11:55:56 Player: Bzilon Result: Destroyed by G-47 Trooper with Particle Gun Performance ------------- Evolutions (2) 1000 Regions Visited (4) 800 Robots Destroyed (23) 115 Value Destroyed (815) 815 Prototype IDs (4) 80 Alien Tech Used (0) 0 Bonus (33) 33 TOTAL SCORE: 2843 Bonus ------- Follower Combat Kills 33 Cogmind --------- Core Integrity 0/550 Matter 73/300 Energy 28/100 System Corruption 0% Temperature Critical (701) Movement Core (200) Ox3 Location -8/Materials Parts ------- > --- POWER (1) -------- (None) > --- PROPULSION (4) --- Aluminum Leg > --- UTILITY (3) ------ Small Storage Unit > --- WEAPON (3) ------- Particle Gun Assault Rifle > --- INVENTORY (8) ---- Heavy Ion Engine Light Nuclear Core Mining Laser Peak State ------------ > --- POWER ------------ Light Nuclear Core > --- PROPULSION ------- Aluminum Leg Aluminum Leg Titanium Leg > --- UTILITY ---------- Small Storage Unit Improved Signal Interpreter Improved Light Armor Plating > --- WEAPON ----------- Improved Medium Laser Assault Rifle Assault Cannon > --- INVENTORY -------- Heavy Ion Engine Light Nuclear Core Particle Gun Assault Rifle Assault Rifle Mining Laser [Rating: 23] Favorites ----------- Power Ion Engine Engine Ion Engine Power Core Light Nuclear Core Propulsion Aluminum Leg Leg Aluminum Leg Utility Small Storage Unit Device Improved Heat Sink Storage Small Storage Unit Processor Visual Processing Unit Protection Light Armor Plating Weapon Assault Rifle Energy Gun Improved Medium Laser Ballistic Gun Assault Rifle Ballistic Cannon Assault Cannon Build | -11 -10 -9 -9 -8 ------- Run | Yrd Mat Mat Min Mat Slots Evolved 4 | . . 2 . 2 Power . | . . . . . Propulsion 2 | . . 2 . . Utility 1 | . . . . 1 Weapon 1 | . . . . 1 Parts Attached 30 | 6 3 5 3 13 Power 3 | 1 . 1 . 1 Engine 2 | 1 . 1 . . Core 1 | . . . . 1 Reactor . | . . . . . Propulsion 10 | 2 . 3 2 3 Treads . | . . . . . Leg 10 | 2 . 3 2 3 Wheel . | . . . . . Hover . | . . . . . Flight . | . . . . . Utility 7 | 1 2 . . 4 Device 2 | . 1 . . 1 Storage 1 | 1 . . . . Processor 2 | . . . . 2 Hackware . | . . . . . Protection 2 | . 1 . . 1 Artifact . | . . . . . Weapon 10 | 2 1 1 1 5 Energy Gun 3 | 1 . 1 . 1 Energy Cannon . | . . . . . Ballistic Gun 6 | 1 1 . 1 3 Ballistic Cannon 1 | . . . . 1 Launcher . | . . . . . Special Weapon . | . . . . . Impact Weapon . | . . . . . Slashing Weapon . | . . . . . Piercing Weapon . | . . . . . Special Melee Weapon . | . . . . . Unidentified Prototypes 2 | . . 2 . . Parts Lost 19 | . 1 1 3 14 Power 1 | . . . . 1 Propulsion 9 | . . 1 2 6 Utility 4 | . 1 . . 3 Weapon 5 | . . . 1 4 Highest Loss Streak 10 | . 1 1 2 10 To Critical Strikes . | . . . . . Average Slot Usage (%) 92 | . 96 91 94 84 Engine 9 | . 14 11 11 1 Core 1 | . . . . 7 Leg 31 | . 28 36 40 25 Device 6 | . 2 11 11 4 Storage 11 | . 14 11 11 9 Processor 1 | . . . . 8 Protection 3 | . 8 . . 3 Energy Gun 6 | . 1 6 11 8 Ballistic Gun 17 | . 26 15 9 10 Ballistic Cannon 1 | . . . . 6 Naked Turns . | . . . . . Heaviest Build 23 | 14 17 19 19 23 Greatest Support 40 | 20 20 40 40 40 Greatest Overweight (x) 3 | . . . . 3 Average Overweight (x) . | . . . . . Largest Inventory Capacity 8 | 8 8 8 8 8 Average Capacity 7 | 7 8 8 8 8 Most Carried 8 | 3 8 8 8 8 Average Carried 6 | . 6 7 7 7 Final Capacity 8 | 8 8 8 8 8 Final Carried 8 | . 8 8 8 3 Class Distribution -------------------- 74% | Mutant 11% | Scavenger-Skirmisher 7% | Tank 6% | Scavenger-Mutant Dominant Class ---------------- Mutant | -10/Materials Mutant | -9/Materials Mutant | -9/Mines Scavenger-Skirmisher | -8/Materials Resources | -11 -10 -9 -9 -8 ----------- Run | Yrd Mat Mat Min Mat Matter Collected 783 | 144 268 109 167 95 Remotely . | . . . . . Salvage Created 900 | . 258 188 253 201 Parts 48 | . 16 12 13 7 Haulers Intercepted 1 | . . 1 . . Recyclers Shooed . | . . . . . Parts Field Recycled . | . . . . . Retrieved Matter . | . . . . . Parts Self-Destructed . | . . . . . Prevented . | . . . . . Kills | -11 -10 -9 -9 -8 ------- Run | Yrd Mat Mat Min Mat Combat Hostiles Destroyed 20 | . 6 3 6 5 Guns 18 | . 6 3 6 3 Cannons 2 | . . . . 2 Classes Destroyed 6 | . 2 2 . 2 Builder 1 | . . 1 . . Hauler 1 | . . 1 . . Watcher 1 | . 1 . . . Grunt 18 | . 6 3 6 3 Duelist 1 | . . . . 1 Sentry 1 | . . . . 1 Best Kill Streak 6 | . 2 2 6 2 Combat Bots Only 6 | . 2 2 6 2 Max Kills in Single Turn 1 | . 1 1 1 1 Gunslinging . | . . . . . Exploded . | . . . . . Melee . | . . . . . Uniques/NPCs Destroyed . | . . . . . Combat | -11 -10 -9 -9 -8 -------- Run | Yrd Mat Mat Min Mat Hostile Shots Fired 206 | . 46 23 37 100 Missed 53 | . 20 8 12 13 Damage Taken 2575 | . 341 186 359 1689 Core 667 | . 11 47 49 560 Absorbed by Shields . | . . . . . Core Remaining (%) 90 | 100 95 . 76 . Volleys Fired 98 | . 31 21 20 26 Largest 3 | . 2 2 2 3 Hottest 120 | . 40 76 76 120 Shots Fired 208 | . 62 42 38 66 Gun 190 | . 62 42 38 48 Cannon 18 | . . . . 18 Launcher . | . . . . . Special . | . . . . . Kinetic 158 | . 62 36 18 42 Thermal 50 | . . 6 20 24 Explosive . | . . . . . Electromagnetic . | . . . . . Robot Hit Streak 8 | . 8 6 8 8 Robot Miss Streak 8 | . 8 3 2 3 Penetration Max . | . . . . . Secondary Targets 4 | . . . 3 1 Max Gunslinging Chain 1 | . . . 1 1 Shots Hit Robots 135 | . 37 24 30 44 Core Hits 48 | . 15 9 13 11 Critical Kills . | . . . . . Critical Parts Destroyed . | . . . . . Critical Strikes 4 | . . 1 . 3 Burn 4 | . . 1 . 3 Melee Attacks . | . . . . . Impact . | . . . . . Slashing . | . . . . . Piercing . | . . . . . Sneak Attacks . | . . . . . Combat Hostiles . | . . . . . Follow-up Attacks . | . . . . . Damage Inflicted 2133 | . 496 337 473 827 Guns 1747 | . 496 321 473 457 Cannons 369 | . . . . 369 Explosions . | . . . . . Melee . | . . . . . Ramming 17 | . . 16 . 1 Kinetic 1506 | . 496 249 197 564 Thermal 610 | . . 72 276 262 Explosive . | . . . . . Electromagnetic . | . . . . . Impact . | . . . . . Slashing . | . . . . . Piercing . | . . . . . Highest Corruption . | . . . . . Average Corruption . | . . . . . Corruption Purged . | . . . . . Corruption Blocked . | . . . . . Overload Shots . | . . . . . Overflow Damage . | . . . . . Projectiles . | . . . . . Explosions . | . . . . . Melee . | . . . . . Knockbacks 4 | . . . . 4 Impact . | . . . . . Kinetic 3 | . . . . 3 Secondary 1 | . . . . 1 Self-Inflicted Damage . | . . . . . Shots . | . . . . . Rammed . | . . . . . Targets Rammed 3 | . . 2 . 1 Kicked 3 | . . 2 . 1 Crushed . | . . . . . Highest Temperature 694 | . 28 1 1 694 Average Temperature 251 | . 10 1 1 339 Received Heat Transfer 1320 | . 189 84 201 846 Effects 33 | . . . . 33 Shutdowns 2 | . . . . 2 Energy Bleed 4 | . . . . 4 Interference 4 | . . . . 4 Matter Decay 4 | . . . . 4 Short Circuit 2 | . . . . 2 Damage (minor) 2 | . . . . 2 Damage (major) 12 | . . . . 12 Damage (core) 3 | . . . . 3 Siege Activations . | . . . . . Robots Corrupted . | . . . . . Combat Hostiles . | . . . . . Parts Fried . | . . . . . Impact Corruptions . | . . . . . Robots Melted . | . . . . . Combat Hostiles . | . . . . . Parts Melted . | . . . . . Heat Transferred 1628 | . . 222 592 814 Parts Sabotaged . | . . . . . Parts Stolen . | . . . . . Parts Stripped . | . . . . . Power Chain Reactions . | . . . . . Alert | -11 -10 -9 -9 -8 ------- Run | Yrd Mat Mat Min Mat Peak Influence 216 | . 143 72 167 216 Initial 65 | . . . 27 65 Average 74 | . 69 31 85 120 Maximum Alert Level 1 | . . . . 1 Low Security (%) 99 | 100 100 100 100 95 Level 1 . | . . . . 4 Level 2 . | . . . . . Level 3 . | . . . . . Level 4 . | . . . . . Level 5 . | . . . . . High Security . | . . . . . Max Security . | . . . . . Squads Dispatched 1 | . . . . 1 Investigation 1 | . . . . 1 Extermination . | . . . . . Reinforcement . | . . . . . Assault . | . . . . . Garrison . | . . . . . Intercept . | . . . . . Searches Triggered . | . . . . . Construction Impeded . | . . . . . Haulers Reinforced . | . . . . . Active Scanning Responses . | . . . . . Cargo Convoy Interrupts . | . . . . . Stealth | -11 -10 -9 -9 -8 --------- Run | Yrd Mat Mat Min Mat Distress Signals 2 | . 1 . . 1 Communications Jammed . | . . . . . Distress Signals . | . . . . . Times Spotted 30 | . 9 5 6 10 Peak Tracking Total 6 | . 3 3 3 6 Tactical Retreats . | . . . . . Traps | -11 -10 -9 -9 -8 ------- Run | Yrd Mat Mat Min Mat Traps Triggered . | . . . . . Indirectly . | . . . . . Trap Hack Attempts . | . . . . . Triggered . | . . . . . Disarmed . | . . . . . Reprogrammed . | . . . . . Reused . | . . . . . Traps Extracted . | . . . . . Installed . | . . . . . Triggered . | . . . . . Machines | -11 -10 -9 -9 -8 ---------- Run | Yrd Mat Mat Min Mat Machines Disabled 1 | . . . 1 . Max in Single Turn 1 | . . . 1 . Machines Repaired . | . . . . . Machines Dismantled . | . . . . . Machines Sabotaged . | . . . . . Overloaded Fab Kills . | . . . . . Hacking | -11 -10 -9 -9 -8 --------- Run | Yrd Mat Mat Min Mat Machines Accessed 4 | . . 2 . 2 Terminals 4 | . . 2 . 2 Fabricators . | . . . . . Repair Stations . | . . . . . Recycling Units . | . . . . . Scanalyzers . | . . . . . Garrison Access . | . . . . . Total Hacks 11 | . . 6 . 5 Successful 9 | . . 4 . 5 Failed 2 | . . 2 . . Catastrophic . | . . . . . Database Lockouts . | . . . . . Manual . | . . . . . Terminals 11 | . . 6 . 5 Fabricators . | . . . . . Repair Stations . | . . . . . Recycling Units . | . . . . . Scanalyzers . | . . . . . Garrison Access . | . . . . . Terminal Hacks 9 | . . 4 . 5 Record 7 | . . 3 . 4 Prototype ID Bank 1 | . . 1 . . Dispatch Records 1 | . . . . 1 Fabricator Hacks . | . . . . . Repair Station Hacks . | . . . . . Recycling Unit Hacks . | . . . . . Scanalyzer . | . . . . . Garrison Access Hacks . | . . . . . Unauthorized Hacks . | . . . . . Terminals . | . . . . . Fabricators . | . . . . . Repair Stations . | . . . . . Recycling Units . | . . . . . Scanalyzers . | . . . . . Garrison Access . | . . . . . Data Cores Recovered . | . . . . . Used . | . . . . . Hacking Detections 2 | . . 1 . 1 Full Trace Events 1 | . . . . 1 Feedback Events . | . . . . . Feedback Blocked . | . . . . . Robot Schematics Acquired . | . . . . . Robots Built . | . . . . . Authchips . | . . . . . Time . | . . . . . Total Robot Build Rating . | . . . . . Part Schematics Acquired . | . . . . . Parts Built . | . . . . . Authchips . | . . . . . Time . | . . . . . Total Part Build Rating . | . . . . . Parts Repaired . | . . . . . Time . | . . . . . Parts Recycled . | . . . . . Recycled Matter . | . . . . . Retrieved Matter . | . . . . . Retrieved Components . | . . . . . Parts Scanalyzed . | . . . . . Part Schematics Acquired . | . . . . . Parts Damaged . | . . . . . Bothacking | -11 -10 -9 -9 -8 ------------ Run | Yrd Mat Mat Min Mat Used RIF Installer . | . . . . . Robots Hacked . | . . . . . Non-combat . | . . . . . Combat . | . . . . . Robot Hacks Applied . | . . . . . Relay Couplers Released . | . . . . . Fabnet Peak Effective % . | . . . . . Robots Rewired . | . . . . . Allies Hacked . | . . . . . Hacks Repelled . | . . . . . Allies | -11 -10 -9 -9 -8 -------- Run | Yrd Mat Mat Min Mat Total Allies 1 | . . . 1 . Largest Group 1 | . . . 1 1 Highest-Rated Group 31 | . . . 31 31 Highest-Rated Ally 31 | . . . 31 31 Total Orders . | . . . . . Ally Attacks 2 | . . . . 2 Total Damage 41 | . . . . 41 Kills 1 | . . . . 1 Allies Corrupted . | . . . . . Allies Melted . | . . . . . Intel | -11 -10 -9 -9 -8 ------- Run | Yrd Mat Mat Min Mat Robot Analysis Total . | . . . . . Derelict Logs Recovered 1 | . . . 1 . Drone Launches . | . . . . . Drone Recoveries . | . . . . . Exploration | -11 -10 -9 -9 -8 ------------- Run | Yrd Mat Mat Min Mat Turns Passed 1240 | 57 424 214 282 263 Spaces Moved 722 | 39 264 109 182 128 Core 9 | 8 . . . 1 Treads . | . . . . . Legs 713 | 31 264 109 182 127 Wheels . | . . . . . Hover . | . . . . . Flight . | . . . . . Fastest Speed 50 | 50 120 120 120 120 Average Speed 120 | 105 120 120 120 125 Slowest Speed 200 | 120 120 120 120 200 Overloaded Moves . | . . . . . Propulsion Burnouts . | . . . . . Robots Hopped . | . . . . . Cave-ins Triggered . | . . . . . Exploration Rate (%) 23 | 3 48 13 41 13 Regions Visited 4 Branch Regions 1 Pre-discovered Areas 1 | . . . 1 . Known Exits Taken . | . . . . . Unknown Exits Taken 4 | 1 1 1 1 . Scrap Searched 1 | . . . 1 . Spaces Dug . | . . . . . Terrain Destroyed . | . . . . . Melee . | . . . . . Projectile . | . . . . . AOE . | . . . . . Terrain Rammed . | . . . . . Walls Destroyed . | . . . . . Machines Disabled . | . . . . . Actions | -11 -10 -9 -9 -8 --------- Run | Yrd Mat Mat Min Mat Total 898 | 55 308 149 207 179 Wait 12 | 5 . 7 . . Move 718 | 38 263 108 181 128 Hop . | . . . . . Pick Up 29 | 6 10 4 2 7 Fast Attach 6 | . 1 1 2 2 Attach 17 | 6 1 2 1 7 Detach . | . . . . . Swap 7 | . 1 2 . 4 Drop 8 | . 1 2 1 4 Fire 98 | . 31 21 20 26 Melee . | . . . . . Ram . | . . . . . Kick 3 | . . 2 . 1 Crush . | . . . . . Escape Stasis . | . . . . . Rewire . | . . . . . Trap . | . . . . . Miscellaneous . | . . . . . Route ------- -11/Scrapyard -10/Materials -9/Materials -9/Mines -8/Materials History --------- Turn | Location | Event 10 | -11/Scrapyard | Discovered new exit (range 16) 58 | -11/Scrapyard | Entered Materials 308 | -10/Materials | Build established: Mutant 465 | -10/Materials | Discovered new exit (range 14) 482 | -10/Materials | Entered another Materials area 482 | -9/Materials | Evolved 2 slots: Propulsion x2 667 | -9/Materials | Discovered new exit (range 9) 696 | -9/Materials | Entered Mines 777 | -9/Mines | Learned location of Zion (-6) 938 | -9/Mines | Received a Mining Laser from a helpful Derelict 965 | -9/Mines | Discovered new exit (range 13) 970 | -9/Mines | Assembled infested the area 975 | -9/Mines | Assisted by a Guerilla fighting off Assembled 978 | -9/Mines | Entered Materials 978 | -8/Materials | Accompanied by 1 ally 978 | -8/Materials | Evolved 2 slots: Utility x1, Weapon x1 1086 | -8/Materials | Lost 3 parts (2n1u) 1217 | -8/Materials | Core integrity fell below 50% 1233 | -8/Materials | Core integrity fell below 20% 1241 | -8/Materials | Destroyed by G-47 Trooper with Particle Gun Last Messages --------------- Overheating: Sml. Storage Unit damaged (-66). Overheating: Aluminum Leg damaged (-12). Overheating: Imp. Signal Interpreter damaged (-6). Overheating: Core damaged (-93). Overheating: Assault Rifle damaged (-58). Overheating: Sml. Storage Unit damaged (-14). Overheating: Assault Rifle damaged (-8). K-01 Serf collects debris. Aluminum Leg destroyed. Assault Rifle destroyed. G-47 Trooper destroyed. Switching to secondary target: G-47 Trooper. K-01 Serf collects debris. Imp. Signal Interpreter destroyed. Particle Gun broken. Overheating: Short circuit. Aluminum Leg broken. Overheating: Short circuit. K-01 Serf collects debris. Map ----- +----------------------------------------------------+ | ?????????????????????????????????????????????????? | | ?????????????????????????????????????????????????? | | ?????????????????????????????????????????????????? | | ?????????????????????????????????????????????????? | | ?????????????????????????????????????????????????? | | ?????????????????????????????????????????????????? | | ????????????????????????? ?????????????????????? | | ????????????????????????? #????????????????????? | | ????????????????????????? +????????????????????? | | ????????????????????????? #????????????????????? | | ????????????????????????# #????????????????????? | | ????????????????????????# #????????????????????? | | ????????????????????????# #????????????????????? | | ????????????????????????#a a#????????????????????? | | ????????????????????????# #????????????????????? | | ????????????????????????+ +????????????????????? | | ????????????????????????#k #????????????????????? | | ????????????????????????# w #????????????????????? | | ????????????????????????# %%#????????????????????? | | ????????????????????????#% %#????????????????????? | | ????????????????????????#% #????????????????????? | | ????????????????????????# g #????????????????????? | | ????????????????????????#k%g#????????????????????? | | ????????????????????????#g[ #????????????????????? | | ????????????????????????# %=#????????????????????? | | ????????????????????????#@= #????????????????????? | | ????????????????????????# #????????????????????? | | ????????????????????????# #????????????????????? | | ????????????????????????# #????????????????????? | | ????????????????????????# +?????????#######????? | | ????????????????????????# ########### #???## | | ????????????????????????# ## T # #???# | | ????????????????????????# ## + T ##### | | ????????????????????????# ## ! # # !! | | ????????????????????????# ## [ # # !! | | ????????????????????????# ## ! ## ## # | | ????????????????????????# ## """ ## ## | | ????????????????????????# ## """ ## # # | | ????????????????????????# ## """ ## ## # | | ????????????????????????# ## ## ## ## | | ????????????????????????# ##+#####+## ##+# | | ????????????????????????# | | ????????????????????????# | | ????????????????????????# # | | ????????????????????????# #+######+## ### ## | | ????????????????????????# #?????????## ####+## | | ????????????????????????# #??????????# # | | ????????????????????????# #??????????# + ]** | | ????????????????????????# #??????????# # ] | | ????????????????????????# #??????????# # ][ | +----------------------------------------------------+ Best States ------------- Heat Dissipation 45 Energy Generation 14 Energy Capacity 280 Matter Stores 300 Matter Capacity 300 Sight Range 18 Terrain Scan Density 10 Armor Coverage 150 Evasion (%) 55 Item Schematics ----------------- None Robot Schematics ------------------ None Fabricated ------------ Nothing Alien Tech Used ----------------- None Achievements -------------- None Challenges ------------ None Game ------ Seed StealthOmegaRegenerator Manual? 0 Play Time 00:23:50 Cumulative 6.2 hours Start 2024.05.03 @ 11:33:24 End 2024.05.05 @ 11:55:56 Sessions 3 Manual Loads 0 Difficulty Rogue Special Mode None Game No. 12 Rogue 12 Adventurer 0 Explorer 0 Win Type - Total 0 Types 0/0/0/0/0/0/0/0/0 Lore% 13 Gallery% 9 Achievement% 9 Wizard Run 0 Options --------- Layout 1 ASCII 0 Keyboard 0 Movement Mouse Keybinds 0 Fullscreen 2 Font 24/Crisp Map View 50x35 Zoom Use 34% Tactical HUD 0 Map Filters NONE Filters NONE Steam 1 RUN: 809c1f91-1c16-446d-8c19-bb8df8468cbc